fUST/lending_fUST_20250910
["ID","MTS","AMOUNT","RATE_DAILY","PERIOD"]
[384654466,1757502653289,-437.0,0.00021096,2]
[384654467,1757502653300,-51729.32752212,0.000211,5]
[384654468,1757502653310,-3000.0,0.000211,2]
[384654469,1757502653319,-3000.0,0.0002111,2]
[384654470,1757502653328,-3000.0,0.0002112,2]
[384654471,1757502653338,-3000.0,0.0002113,2]
[384654472,1757502653347,-3000.0,0.0002114,2]
[384654473,1757502653356,-2984.67427341,0.0002115,2]
[384654474,1757502653370,-15.32572659,0.0002115,2]
[384654475,1757502653382,-564.08631606,0.0002116,2]
[384654476,1757502681822,1000.0,0.00018595,20]
[384654477,1757502720785,202.32071,0.00027397,120]
[384654481,1757502810164,-205.05568667,0.00013424,2]
[384654482,1757502811726,-330.62307067,0.00013424,2]
[384654483,1757502814134,-97.33672526,0.00013424,2]
[384654484,1757502814159,-153.15883562,0.0001356,2]
[384654485,1757502815155,-153.15883562,0.0001356,2]
[384654486,1757502817673,260.42271646,0.000145,9]
[384654487,1757502818299,-155.90967631,0.0001356,2]
[384654488,1757502818870,-216.76467282,0.0001356,2]
[384654489,1757502819483,-439.56383155,0.0001356,2]
[384654490,1757502820061,-9.21627347,0.0001356,2]
[384654491,1757502820090,-213.58288526,0.00013598,2]
[384654492,1757502822652,-243.18141578,0.00013598,2]
[384654493,1757502822675,-124.71231283,0.00013598,2]
[384654494,1757502823206,-358.67745514,0.00013598,2]
[384654495,1757502823911,-326.44136532,0.00013598,2]
[384654496,1757502825120,-409.96063973,0.00013598,2]
[384654497,1757502825706,-208.42979622,0.00013598,2]
[384654499,1757502826834,-161.32346793,0.00013598,2]
[384654500,1757502827997,-293.90784349,0.00013598,2]
[384654501,1757502828583,-207.12311892,0.00013598,2]
[384654502,1757502829248,-355.6001215,0.00013598,2]
[384654503,1757502829848,-138.66433585,0.00013598,2]
[384654504,1757502829871,-189.30466192,0.00013598,2]
[384654505,1757502830452,-285.85808101,0.00013598,2]
[384654506,1757502831561,-421.23328674,0.00013598,2]
[384654507,1757502832184,-282.56895089,0.00013598,2]
[384654508,1757502832730,-365.23881708,0.00013598,2]
[384654509,1757502833308,-281.77963545,0.00013598,2]
[384654510,1757502834550,-162.89081125,0.00013598,2]
[384654511,1757502835012,10000.01,0.00013462,2]
[384654512,1757502835035,10000.01,0.00013462,2]
[384654513,1757502835057,8510.21525963,0.00013462,2]
[384654514,1757502835632,-300.48177785,0.00013598,2]
[384654515,1757502838319,-152.33357816,0.00013598,2]
[384654516,1757502839410,-165.97846305,0.00013598,2]
[384654517,1757502843940,474.49239195,0.00013462,2]
[384654518,1757502858415,-287.07340654,0.00013598,2]
[384654519,1757502860343,640.38469054,0.00013462,2]
[384654520,1757502861211,-203.2046558,0.00013598,2]
[384654521,1757502861784,-206.78075395,0.00013598,2]
[384654522,1757502862350,-218.27868683,0.00013598,2]
[384654523,1757502868692,-524.13135283,0.00013598,2]
[384654524,1757502869317,-320.92669703,0.00013598,2]
[384654525,1757502869920,-638.27729591,0.00013598,2]
[384654526,1757502870458,-419.99860908,0.00013598,2]
[384654527,1757502872369,201.89682667,0.00013597,2]
[384654528,1757502872397,173.02083121,0.00013597,2]
[384654529,1757502872419,16.92308648,0.00013597,2]
[384654530,1757502873473,236.41912504,0.00013597,2]
[384654531,1757502873507,500.0,0.00013597,2]
[384654532,1757502873536,365.57292924,0.00013597,2]
[384654533,1757502876830,-367.89372861,0.00013598,2]
[384654534,1757502877408,-252.78344526,0.00013598,2]
[384654535,1757502878609,-258.12254443,0.00013598,2]
[384654536,1757502879648,-287.06555677,0.00013598,2]
[384654537,1757502882525,-420.35264175,0.00013598,2]
[384654538,1757502883140,-167.56919649,0.00013598,2]
[384654539,1757502884662,283.98575474,0.00013462,2]
[384654540,1757502894004,287.06555677,0.00013462,2]
[384654541,1757502895924,-367.89372861,0.00013598,2]
[384654542,1757502896591,-273.06939435,0.00013598,2]
[384654543,1757502900351,-238.96833848,0.00013598,2]
[384654544,1757502900937,-400.66773434,0.00013598,2]
[384654545,1757502905236,373.785956,0.00027397,120]
[384654546,1757502910605,192.24122251,0.00013462,2]
[384654547,1757502920589,-343.28657357,0.00013598,2]
[384654548,1757502921159,-445.37400761,0.00013598,2]
[384654549,1757502921839,-206.40566913,0.00013598,2]
[384654550,1757502922944,-228.42226009,0.00013598,2]
[384654551,1757502928843,-274.35949989,0.00013598,2]
[384654552,1757502930193,-300.12924546,0.00013598,2]
[384654553,1757502931051,-393.72357633,0.00013598,2]
[384654554,1757502931640,-165.30131624,0.00013598,2]
[384654555,1757502932377,500.0,0.00013597,2]
[384654556,1757502932759,200.0,0.00013598,10]
[384654557,1757502933093,200.0,0.00013598,10]
[384654558,1757502933399,200.0,0.00013598,10]
[384654559,1757502933717,200.0,0.00013598,10]
[384654560,1757502934028,200.0,0.00013598,10]
[384654561,1757502934637,200.0,0.00013598,10]
[384654562,1757502934965,200.0,0.00013598,10]
[384654563,1757502935270,200.0,0.00013598,10]
[384654564,1757502935577,200.0,0.00013598,10]
[384654565,1757502935934,200.0,0.00013598,10]
[384654566,1757502935978,274.35949989,0.00013462,2]
[384654567,1757502936168,200.0,0.00013598,10]
[384654568,1757502936477,200.0,0.00013598,10]
[384654569,1757502936776,200.0,0.00013598,10]
[384654570,1757502937085,200.0,0.00013598,10]
[384654571,1757502937403,200.0,0.00013598,10]
[384654572,1757502937697,200.0,0.00013598,10]
[384654573,1757502938005,200.0,0.00013598,10]
[384654574,1757502938434,200.0,0.00013598,10]
[384654575,1757502938732,200.0,0.00013598,10]
[384654576,1757502939067,200.0,0.00013598,10]
[384654577,1757502939522,200.0,0.00013598,10]
[384654578,1757502939838,200.0,0.00013598,10]
[384654579,1757502940156,203.033002,0.00013598,10]
[384654580,1757502942015,-294.57134944,0.00013598,2]
[384654581,1757502943140,-317.77456623,0.00013598,2]
[384654582,1757502944427,-309.12184833,0.00013598,2]
[384654583,1757502944748,429.60935849,0.00013462,2]
[384654584,1757502944902,-515.35834902,0.00013598,2]
[384654585,1757502959917,-220.78699958,0.00013598,2]
[384654586,1757502961048,-233.49066903,0.00013598,2]
[384654587,1757502961793,612.34591567,0.00013462,2]
[384654588,1757502962200,-393.72803304,0.00013598,2]
[384654589,1757502963313,-346.07787821,0.00013598,2]
[384654590,1757502972861,399.66876341,0.00013598,2]
[384654591,1757502978492,-172.05962642,0.00013598,2]
[384654592,1757502979576,-346.07787821,0.00013598,2]
[384654593,1757502980675,-287.34474372,0.00013598,2]
[384654594,1757502982033,-247.0321659,0.00013598,2]
[384654595,1757502984918,164.95409883,0.00027397,120]
[384654596,1757502992624,287.34474372,0.00013462,2]
[384654597,1757502997751,-421.86793081,0.00013598,2]
[384654598,1757502998360,-418.02918404,0.00013598,2]
[384654599,1757502998938,-430.81368578,0.00013598,2]
[384654600,1757502999468,-183.78151988,0.00013598,2]
[384654601,1757503000583,-203.4359139,0.00013598,2]
[384654602,1757503003188,-266.27671976,0.00013598,2]
[384654603,1757503009159,203.4359139,0.00013462,2]
[384654604,1757503013797,-164.05823101,0.00013598,2]
[384654605,1757503014817,-348.97667853,0.00013598,2]
[384654606,1757503015450,-474.80935698,0.00013598,2]
[384654607,1757503016052,-208.53263722,0.00013598,2]
[384654608,1757503021716,-418.93666458,0.00013598,2]
[384654609,1757503022364,-416.85537738,0.00013598,2]
[384654610,1757503023953,-165.97846305,0.00013598,2]
[384654611,1757503026425,-176.11760513,0.00013598,2]
[384654612,1757503028098,-310.51256784,0.00013598,2]
[384654613,1757503029218,-329.26859235,0.00013598,2]
[384654614,1757503029857,-163.2901293,0.00013598,2]
[384654615,1757503030930,-329.11417802,0.00013598,2]
[384654616,1757503031510,-195.61371162,0.00013598,2]
[384654617,1757503033891,1182.0,0.00013597,2]
[384654618,1757503041625,205.81641368,0.00013498,2]
[384654619,1757503042230,-370.68662856,0.00013598,2]
[384654620,1757503042840,-207.39649926,0.00013598,2]
[384654621,1757503043894,-220.11109706,0.00013598,2]
[384654622,1757503044473,-244.6084825,0.00013598,2]
[384654623,1757503047140,-204.49300831,0.00013598,2]
[384654624,1757503048721,-375.57103764,0.00013598,2]
[384654625,1757503051029,1400.1003382,0.00013598,2]
[384654626,1757503051674,186.97233615,0.00013598,2]
[384654627,1757503054412,332.17058919,0.00013597,2]
[384654628,1757503064469,-155.45994058,0.00013598,2]
[384654629,1757503065634,-531.40138304,0.00013598,2]
[384654630,1757503066218,-326.90837473,0.00013598,2]
[384654631,1757503067622,-455.48778367,0.00013598,2]
[384654632,1757503078118,-300.02784309,0.00013598,2]
[384654633,1757503082429,-211.21256575,0.00013598,2]
[384654634,1757503083529,-198.01979128,0.00013598,2]
[384654635,1757503084715,-169.97848324,0.00013598,2]
[384654636,1757503094701,455.4877837,0.00013598,2]
[384654637,1757503099039,1648.49066922,0.00013573,2]
[384654638,1757503099066,74.73630206,0.00013573,2]
[384654639,1757503100647,-191.13106353,0.00013598,2]
[384654640,1757503101751,-440.49561061,0.00013598,2]
[384654641,1757503102308,-242.47581933,0.00013598,2]
[384654642,1757503102947,-280.52280798,0.00013598,2]
[384654643,1757503163133,349.71016801,0.00013573,2]
[384654644,1757503175883,500.0,0.00013597,2]
[384654645,1757503216614,3111.01057109,0.00013462,2]
[384654646,1757503222003,167.3945075,0.00013498,2]
[384654647,1757503233165,1254.33129206,0.00013462,2]
[384654648,1757503297622,417.20586742,0.00013597,2]
[384654649,1757503353524,305.996397,0.00013598,2]
[384654650,1757503379329,1148.81798086,0.00013598,2]
[384654651,1757503420191,500.0,0.00013597,2]
[384654653,1757503480725,2170.806914,0.00013598,2]
[384654654,1757503480748,4226.6691942,0.00013598,2]
[384654655,1757503490326,229.4633309,0.0001319,2]
[384654656,1757503502214,300.0,0.00013597,2]
[384654657,1757503502628,300.0,0.00013597,2]
[384654658,1757503505851,1200.0,0.00013597,2]
[384654659,1757503509917,234.87795546,0.00013597,2]
[384654660,1757503509951,500.0,0.00013597,2]
[384654661,1757503509981,500.0,0.00013597,2]
[384654662,1757503510009,209.86383591,0.00013597,2]
[384654663,1757503510038,500.0,0.00013597,2]
[384654664,1757503510070,500.0,0.00013597,2]
[384654665,1757503510105,500.0,0.00013597,2]
[384654666,1757503510138,500.0,0.00013597,2]
[384654667,1757503510170,299.13568353,0.00013597,2]
[384654668,1757503510194,200.86431647,0.00013597,2]
[384654669,1757503510225,500.0,0.00013597,2]
[384654670,1757503510256,258.5574325,0.00013597,2]
[384654671,1757503510288,500.0,0.00013597,2]
[384654672,1757503510316,364.00583337,0.00013597,2]
[384654673,1757503510346,500.0,0.00013597,2]
[384654674,1757503510375,500.0,0.00013597,2]
[384654675,1757503510413,500.0,0.00013597,2]
[384654677,1757503510444,500.0,0.00013597,2]
[384654679,1757503510474,440.26324496,0.00013597,2]
[384654680,1757503510512,500.0,0.00013597,2]
[384654681,1757503510544,500.0,0.00013597,2]
[384654682,1757503510578,650.0,0.00013597,2]
[384654687,1757503542402,500.0,0.00013597,2]
[384654688,1757503544346,267.74684734,0.00013598,2]
[384654694,1757503588025,300.0,0.00013462,2]
[384654695,1757503597462,3473.44045353,0.00013462,2]
[384654696,1757503605660,4351.76141579,0.00013462,2]
[384654702,1757503641124,-300.0,0.00013597,2]
[384654703,1757503641144,-1200.0,0.00013597,2]
[384654704,1757503641164,-218.78111207,0.00013598,2]
[384654705,1757503641185,-10016.85837411,0.00013598,2]
[384654737,1757503782693,201.0,0.00025,120]
[384654789,1757503837682,-378.58896965,0.00013597,2]
[384654790,1757503837756,-121.41103035,0.00013597,2]
[384654792,1757503837766,-500.0,0.00013597,2]
[384654793,1757503837775,-765.8786539,0.00013598,2]
[384654796,1757503837785,-4792.5212224,0.00013598,2]
[384654798,1757503837794,-234.27849144,0.00013598,2]
[384654799,1757503837803,-162.6555008,0.00013598,2]
[384654800,1757503837816,-4074.55613531,0.00013598,2]
[384655030,1757503843577,-133788.29484756,0.00013598,2]
[384655031,1757503843686,-196866.88118977,0.00013598,2]
[384655033,1757503843696,-469.75699858,0.00013673,2]
[384655034,1757503843706,-500.0,0.00013673,2]
[384655035,1757503843715,-480.0,0.00013698,2]
[384655036,1757503843725,-484.80567327,0.00013698,2]
[384655037,1757503843734,-480.0,0.00013698,2]
[384655038,1757503843743,-480.0,0.00013698,2]
[384655039,1757503843753,-482.03090318,0.00013698,2]
[384655040,1757503843763,-480.0,0.00013698,2]
[384655041,1757503843773,-480.0,0.00013698,2]
[384655042,1757503843782,-480.0,0.00013698,2]
[384655043,1757503843791,-483.70745102,0.00013698,2]
[384655044,1757503843801,-484.95816306,0.00013698,2]
[384655045,1757503843810,-480.0,0.00013698,2]
[384655046,1757503843819,-482.78382603,0.00013698,2]
[384655047,1757503843828,-483.35534612,0.00013698,2]
[384655048,1757503843837,-480.0,0.00013698,2]
[384655049,1757503843847,-481.40132224,0.00013698,2]
[384655050,1757503843856,-481.42116779,0.00013698,2]
[384655051,1757503843865,-480.0,0.00013698,2]
[384655052,1757503843875,-482.15021736,0.00013698,2]
[384655053,1757503843884,-481.43717809,0.00013698,2]
[384655054,1757503843893,-483.02189218,0.00013698,2]
[384655055,1757503843903,-480.0,0.00013698,2]
[384655056,1757503843912,-482.85908735,0.00013698,2]
[384655057,1757503843922,-481.54633036,0.00013698,2]
[384655058,1757503843932,-482.42793387,0.00013698,2]
[384655059,1757503843941,-415.95900355,0.00013698,2]
[384655060,1757503843951,-480.0,0.00013698,2]
[384655061,1757503843961,-480.0,0.00013698,2]
[384655062,1757503843970,-480.0,0.00013698,2]
[384655063,1757503843980,-480.0,0.00013698,2]
[384655064,1757503843990,-480.0,0.00013698,2]
[384655065,1757503843999,-480.0,0.00013698,2]
[384655066,1757503844010,-480.0,0.00013698,2]
[384655067,1757503844020,-480.0,0.00013698,2]
[384655068,1757503844030,-489.440242,0.00013698,2]
[384655069,1757503844039,-480.0,0.00013698,2]
[384655070,1757503844048,-480.0,0.00013698,2]
[384655071,1757503844058,-480.0,0.00013698,2]
[384655072,1757503844067,-480.0,0.00013698,2]
[384655073,1757503844077,-480.0,0.00013698,2]
[384655074,1757503844087,-482.21406152,0.00013698,2]
[384655075,1757503844097,-480.0,0.00013698,2]
[384655076,1757503844106,-482.73065946,0.00013698,2]
[384655077,1757503844115,-480.0,0.00013698,2]
[384655078,1757503844126,-484.9265449,0.00013698,2]
[384655079,1757503844136,-480.0,0.00013698,2]
[384655080,1757503844146,-482.09187966,0.00013698,2]
[384655081,1757503844157,-480.0,0.00013698,2]
[384655082,1757503844166,-480.0,0.00013698,2]
[384655083,1757503844175,-480.0,0.00013698,2]
[384655084,1757503844185,-484.53719561,0.00013698,2]
[384655085,1757503844195,-530.13183935,0.00013698,2]
[384655086,1757503844204,-480.0,0.00013698,2]
[384655087,1757503844214,-480.0,0.00013698,2]
[384655088,1757503844223,-480.0,0.00013698,2]
[384655089,1757503844232,-480.0,0.00013698,2]
[384655090,1757503844242,-480.0,0.00013698,2]
[384655091,1757503844251,-486.56359179,0.00013698,2]
[384655092,1757503844260,-480.0,0.00013698,2]
[384655093,1757503844270,-480.0,0.00013698,2]
[384655094,1757503844279,-480.0,0.00013698,2]
[384655095,1757503844288,-480.0,0.00013698,2]
[384655096,1757503844401,-481.70986549,0.00013698,2]
[384655097,1757503844411,-480.0,0.00013698,2]
[384655098,1757503844421,-480.0,0.00013698,2]
[384655099,1757503844430,-482.06237796,0.00013698,2]
[384655100,1757503844440,-480.0,0.00013698,2]
[384655101,1757503844450,-480.0,0.00013698,2]
[384655102,1757503844459,-480.0,0.00013698,2]
[384655103,1757503844468,-572.91453078,0.00013698,2]
[384655104,1757503844478,-500.0,0.00013698,2]
[384655105,1757503844487,-480.0,0.00013698,2]
[384655106,1757503844497,-480.0,0.00013698,2]
[384655107,1757503844506,-480.0,0.00013698,2]
[384655108,1757503844516,-480.0,0.00013698,2]
[384655109,1757503844525,-480.0,0.00013698,2]
[384655110,1757503844535,-480.0,0.00013698,2]
[384655111,1757503844544,-480.0,0.00013698,2]
[384655112,1757503844554,-480.0,0.00013698,2]
[384655113,1757503844564,-481.47963594,0.00013698,2]
[384655114,1757503844573,-480.0,0.00013698,2]
[384655115,1757503844583,-480.0,0.00013698,2]
[384655116,1757503844592,-480.0,0.00013698,2]
[384655117,1757503844602,-480.0,0.00013698,2]
[384655118,1757503844612,-480.0,0.00013698,2]
[384655119,1757503844621,-480.0,0.00013698,2]
[384655120,1757503844632,-480.0,0.00013698,2]
[384655121,1757503844642,-480.0,0.00013698,2]
[384655122,1757503844651,-480.0,0.00013698,2]
[384655123,1757503844660,-480.0,0.00013698,2]
[384655124,1757503844670,-480.0,0.00013698,2]
[384655125,1757503844681,-481.78168044,0.00013698,2]
[384655126,1757503844691,-480.0,0.00013698,2]
[384655127,1757503844700,-480.0,0.00013698,2]
[384655128,1757503844710,-488.11870951,0.00013698,2]
[384655129,1757503844719,-480.0,0.00013698,2]
[384655130,1757503844729,-480.0,0.00013698,2]
[384655131,1757503844738,-480.0,0.00013698,2]
[384655132,1757503844748,-480.53323057,0.00013698,2]
[384655133,1757503844757,-480.0,0.00013698,2]
[384655134,1757503844767,-480.0,0.00013698,2]
[384655135,1757503844777,-480.0,0.00013698,2]
[384655136,1757503844786,-480.0,0.00013698,2]
[384655137,1757503844796,-480.0,0.00013698,2]
[384655138,1757503844805,-480.0,0.00013698,2]
[384655139,1757503844817,-480.0,0.00013698,2]
[384655140,1757503844827,-480.0,0.00013698,2]
[384655141,1757503844836,-480.0,0.00013698,2]
[384655142,1757503844846,-480.0,0.00013698,2]
[384655143,1757503844856,-480.0,0.00013698,2]
[384655144,1757503844867,-487.83040481,0.00013698,2]
[384655145,1757503844877,-483.83879395,0.00013698,2]
[384655146,1757503844887,-480.0,0.00013698,2]
[384655147,1757503844897,-296.49860141,0.00013698,2]
[384655148,1757503844908,-480.0,0.00013698,2]
[384655149,1757503844918,-480.0,0.00013698,2]
[384655150,1757503844929,-480.0,0.00013698,2]
[384655151,1757503844938,-480.0,0.00013698,2]
[384655152,1757503844948,-480.0,0.00013698,2]
[384655153,1757503844957,-480.0,0.00013698,2]
[384655154,1757503844967,-480.0,0.00013698,2]
[384655155,1757503844977,-524.18976744,0.00013698,2]
[384655156,1757503844987,-480.0,0.00013698,2]
[384655157,1757503844996,-482.80682231,0.00013698,2]
[384655158,1757503845006,-483.12777276,0.00013698,2]
[384655160,1757503845015,-482.14181203,0.00013698,2]
[384655161,1757503845024,-480.0,0.00013698,2]
[384655162,1757503845034,-480.0,0.00013698,2]
[384655163,1757503845044,-480.0,0.00013698,2]
[384655164,1757503845053,-480.0,0.00013698,2]
[384655165,1757503845062,-480.0,0.00013698,2]
[384655166,1757503845071,-480.0,0.00013698,2]
[384655167,1757503845081,-480.0,0.00013698,2]
[384655168,1757503845090,-480.0,0.00013698,2]
[384655169,1757503845100,-483.44132887,0.00013698,2]
[384655170,1757503845110,-480.0,0.00013698,2]
[384655171,1757503845119,-480.0,0.00013698,2]
[384655172,1757503845129,-483.81622415,0.00013698,2]
[384655173,1757503845139,-480.0,0.00013698,2]
[384655174,1757503845148,-480.0,0.00013698,2]
[384655175,1757503845157,-480.0,0.00013698,2]
[384655176,1757503845166,-480.0,0.00013698,2]
[384655177,1757503845176,-480.0,0.00013698,2]
[384655178,1757503845186,-480.0,0.00013698,2]
[384655179,1757503845195,-480.0,0.00013698,2]
[384655180,1757503845204,-480.0,0.00013698,2]
[384655181,1757503845213,-480.0,0.00013698,2]
[384655182,1757503845223,-480.0,0.00013698,2]
[384655183,1757503845232,-480.0,0.00013698,2]
[384655184,1757503845242,-480.0,0.00013698,2]
[384655185,1757503845251,-480.0,0.00013698,2]
[384655186,1757503845260,-473.1658546,0.00013698,2]
[384655187,1757503845269,-480.0,0.00013698,2]
[384655188,1757503845279,-552.08,0.00013698,2]
[384655189,1757503845288,-480.0,0.00013698,2]
[384655190,1757503845297,-484.42089267,0.00013698,2]
[384655191,1757503845307,-250.70818146,0.00013698,2]
[384655192,1757503845315,-309.16070114,0.00013698,2]
[384655193,1757503845325,-482.18888764,0.00013698,2]
[384655194,1757503845334,-484.89244816,0.00013698,2]
[384655195,1757503845344,-480.0,0.00013698,2]
[384655196,1757503845353,-480.0,0.00013698,2]
[384655197,1757503845362,-480.0,0.00013698,2]
[384655198,1757503845372,-480.0,0.00013698,2]
[384655199,1757503845381,-480.0,0.00013698,2]
[384655200,1757503845390,-482.67254381,0.00013698,2]
[384655201,1757503845399,-480.0,0.00013698,2]
[384655202,1757503845409,-480.0,0.00013698,2]
[384655204,1757503845417,-480.0,0.00013698,2]
[384655205,1757503845427,-480.0,0.00013698,2]
[384655206,1757503845435,-480.0,0.00013698,2]
[384655207,1757503845445,-483.60409814,0.00013698,2]
[384655209,1757503845455,-480.0,0.00013698,2]
[384655210,1757503845464,-480.0,0.00013698,2]
[384655211,1757503845473,-480.0,0.00013698,2]
[384655212,1757503845483,-480.0,0.00013698,2]
[384655213,1757503845492,-480.0,0.00013698,2]
[384655214,1757503845501,-480.0,0.00013698,2]
[384655215,1757503845510,-480.0,0.00013698,2]
[384655216,1757503845520,-482.49203632,0.00013698,2]
[384655217,1757503845530,-480.56681057,0.00013698,2]
[384655218,1757503845539,-480.0,0.00013698,2]
[384655219,1757503845549,-480.0,0.00013698,2]
[384655220,1757503845558,-482.79201266,0.00013698,2]
[384655221,1757503845567,-480.0,0.00013698,2]
[384655222,1757503845576,-480.0,0.00013698,2]
[384655223,1757503845586,-485.51367961,0.00013698,2]
[384655224,1757503845595,-480.0,0.00013698,2]
[384655225,1757503845604,-480.0,0.00013698,2]
[384655226,1757503845613,-480.0,0.00013698,2]
[384655227,1757503845622,-481.6186561,0.00013698,2]
[384655228,1757503845631,-481.79391283,0.00013698,2]
[384655229,1757503845640,-531.32356336,0.00013698,2]
[384655230,1757503845649,-480.0,0.00013698,2]
[384655231,1757503845659,-221.33957413,0.00013698,2]
[384655232,1757503845667,-480.0,0.00013698,2]
[384655233,1757503845677,-481.3753523,0.00013698,2]
[384655234,1757503845686,-480.0,0.00013698,2]
[384655235,1757503845695,-480.0,0.00013698,2]
[384655236,1757503845704,-480.0,0.00013698,2]
[384655237,1757503845713,-480.0,0.00013698,2]
[384655238,1757503845723,-480.96590175,0.00013698,2]
[384655239,1757503845732,-482.29067602,0.00013698,2]
[384655240,1757503845742,-480.0,0.00013698,2]
[384655241,1757503845751,-319.62515827,0.00013698,2]
[384655242,1757503845761,-480.0,0.00013698,2]
[384655243,1757503845770,-373.18757569,0.00013698,2]
[384655244,1757503845779,-477.24014437,0.00013698,2]
[384655245,1757503845788,-480.0,0.00013698,2]
[384655246,1757503845797,-480.0,0.00013698,2]
[384655247,1757503845807,-480.86930627,0.00013698,2]
[384655248,1757503845816,-480.0,0.00013698,2]
[384655249,1757503845826,-480.42843241,0.00013698,2]
[384655250,1757503845835,-480.0,0.00013698,2]
[384655251,1757503845844,-485.40139364,0.00013698,2]
[384655252,1757503845854,-480.0,0.00013698,2]
[384655253,1757503845863,-480.0,0.00013698,2]
[384655254,1757503845872,-485.19074899,0.00013698,2]
[384655255,1757503845881,-376.82846288,0.00013698,2]
[384655256,1757503845890,-3836.7,0.00013698,2]
[384655257,1757503845899,-480.0,0.00013698,2]
[384655258,1757503845909,-480.0,0.00013698,2]
[384655259,1757503845919,-480.0,0.00013698,2]
[384655260,1757503845928,-480.0,0.00013698,2]
[384655261,1757503845937,-484.61608639,0.00013698,2]
[384655262,1757503845946,-480.0,0.00013698,2]
[384655263,1757503845955,-480.0,0.00013698,2]
[384655264,1757503845964,-480.0,0.00013698,2]
[384655265,1757503845974,-480.0,0.00013698,2]
[384655266,1757503845983,-482.38074525,0.00013698,2]
[384655267,1757503845992,-548.0,0.00013698,2]
[384655268,1757503846002,-384.659086,0.00013699,2]
[384655269,1757503846011,-300.0,0.00013971,2]
[384655270,1757503846020,-300.0,0.00013971,2]
[384655271,1757503846030,-300.0,0.00013971,2]
[384655272,1757503846039,-300.0,0.00013971,2]
[384655273,1757503846049,-300.0,0.00013971,2]
[384655274,1757503846058,-300.0,0.00013971,2]
[384655275,1757503846067,-300.0,0.00013971,2]
[384655276,1757503846077,-300.0,0.00013971,2]
[384655277,1757503846086,-300.0,0.00013971,2]
[384655278,1757503846095,-300.0,0.00013971,2]
[384655279,1757503846105,-300.0,0.00013971,2]
[384655280,1757503846116,-300.0,0.00013971,2]
[384655281,1757503846125,-300.0,0.00013971,2]
[384655282,1757503846136,-300.0,0.00013971,2]
[384655283,1757503846145,-300.0,0.00013971,2]
[384655284,1757503846155,-600.0,0.00013971,2]
[384655285,1757503846164,-480.0,0.00013972,2]
[384655286,1757503846174,-480.0,0.00013972,2]
[384655287,1757503846184,-480.0,0.00013972,2]
[384655288,1757503846193,-219.27026768,0.00013972,2]
[384655289,1757503846202,-480.0,0.00013972,2]
[384655290,1757503846212,-484.61949689,0.00013972,2]
[384655291,1757503846221,-480.0,0.00013972,2]
[384655292,1757503846230,-3836.7,0.00013972,2]
[384655293,1757503846239,-480.0,0.00014246,2]
[384655294,1757503846248,-480.0,0.00014246,2]
[384655295,1757503846258,-3836.7,0.00014246,2]
[384655296,1757503846268,-5845.30740641,0.000145,2]
[384655297,1757503846278,-480.0,0.0001452,2]
[384655298,1757503846287,-478.79612109,0.0001452,2]
[384655299,1757503846296,-3836.7,0.0001452,2]
[384655300,1757503846305,-584.21865693,0.00014794,2]
[384655301,1757503846315,-3836.7,0.00014794,2]
[384655302,1757503846324,-203.30414021,0.00014925,2]
[384655303,1757503846333,-846.88337432,0.00014925,2]
[384655304,1757503846342,-217.67150996,0.00014925,2]
[384655305,1757503846351,-530.87637315,0.00014925,2]